bitfinex/quotes_BTCUSD_20240717
["timestamp","ask_amount","ask_price","bid_price","bid_amount"]
[1721246449277,0.154679,64650.0,64649.0,0.2763]
[1721246449515,0.464037,64650.0,64649.0,0.2763]
[1721246449761,0.1,64658.0,64650.0,0.0654]
[1721246450006,0.154668,64655.0,64651.0,0.081594]
[1721246450265,0.1,64658.0,64651.0,0.0788]
[1721246450266,0.15467,64654.0,64651.0,0.0788]
[1721246450505,0.17717479,64658.0,64651.0,0.0788]
[1721246450758,0.154674,64652.0,64651.0,0.0788]
[1721246451758,0.154672,64653.0,64651.0,0.0788]
[1721246453502,0.159672,64653.0,64651.0,0.0788]
[1721246453768,0.309342,64654.0,64651.0,0.0788]
[1721246453769,0.154674,64652.0,64651.0,0.0788]
[1721246454025,0.464022,64652.0,64651.0,0.0788]
[1721246455275,0.154674,64652.0,64651.0,0.0788]
[1721246455509,0.005,64653.0,64651.0,0.0788]
[1721246455749,0.154671,64654.0,64651.0,0.0788]
[1721246456008,0.154671,64654.0,64652.0,0.002794]
[1721246456247,0.309333,64656.0,64652.0,0.002794]
[1721246456248,0.154671,64653.0,64652.0,0.002794]
[1721246456749,0.157671,64653.0,64652.0,0.002794]
[1721246456997,0.154671,64653.0,64652.0,0.002794]
[1721246457968,0.155671,64653.0,64651.0,0.0788]
[1721246458465,0.155671,64653.0,64652.0,0.002794]
[1721246458700,0.001,64653.0,64652.0,0.157468]
[1721246458937,0.001,64653.0,64651.0,0.233475]
[1721246459181,0.001,64653.0,64652.0,0.002794]
[1721246459182,0.004,64653.0,64652.0,0.002794]
[1721246459700,0.004,64653.0,64652.0,1.2419429]
[1721246459949,0.15465,64662.0,64657.0,0.15466]
[1721246460204,0.15465,64662.0,64658.0,0.002794]
[1721246460458,0.04705069,64671.0,64660.0,0.216754]
[1721246460711,0.04705069,64671.0,64661.0,0.002794]
[1721246460712,0.3093,64662.0,64661.0,0.002794]
[1721246460989,0.3093,64662.0,64654.0,0.1451]
[1721246461228,0.07717479,64668.0,64652.0,0.005]
[1721246461229,0.464014,64653.0,64652.0,0.005]
[1721246461478,1.0827,64653.0,64652.0,0.005]
[1721246461719,1.0827,64653.0,64649.0,0.000913]
[1721246461720,0.773395,64650.0,64649.0,0.000913]
[1721246462462,1.082753,64650.0,64649.0,0.000913]
[1721246463080,1.082753,64650.0,64649.0,0.001913]
[1721246463319,1.082753,64650.0,64649.0,0.000913]
[1721246463752,1.082753,64650.0,64649.0,0.002913]
[1721246466042,1.13245228,64650.0,64649.0,0.002913]
[1721246466281,1.23713474,64650.0,64649.0,0.002913]
[1721246466527,1.28683402,64650.0,64649.0,0.002913]
[1721246467020,1.2868341,64650.0,64649.0,0.002913]
[1721246467257,1.5961921,64650.0,64649.0,0.002913]
[1721246467500,1.90650365,64650.0,64649.0,0.002913]
[1721246467768,1.88889564,64650.0,64649.0,0.002913]
[1721246468036,1.7731921,64650.0,64649.0,0.002913]
[1721246468290,1.86575839,64650.0,64649.0,0.002913]
[1721246468528,1.7731921,64650.0,64649.0,0.002913]
[1721246468763,1.88889564,64650.0,64649.0,0.002913]
[1721246469243,1.7731921,64650.0,64649.0,0.002913]
[1721246469486,1.88889564,64650.0,64649.0,0.002913]
[1721246469733,1.88998255,64650.0,64649.0,0.002913]
[1721246470202,1.86682526,64650.0,64649.0,0.002913]
[1721246470468,1.77425013,64650.0,64649.0,0.002913]
[1721246470701,1.86683902,64650.0,64649.0,0.002913]
[1721246470939,1.91424202,64650.0,64649.0,0.002913]
[1721246471177,1.89109218,64650.0,64649.0,0.002913]
[1721246471419,1.91424202,64650.0,64649.0,0.002913]
[1721246472478,1.7985096,64650.0,64649.0,0.002913]
[1721246472729,2.27337673,64650.0,64649.0,0.002913]
[1721246472966,2.35902453,64650.0,64649.0,0.002913]
[1721246473454,2.35902453,64650.0,64649.0,0.00285813]
[1721246473916,2.35902453,64650.0,64649.0,0.00085813]
[1721246474183,2.52126329,64650.0,64649.0,0.00185813]
[1721246474446,2.36502453,64650.0,64649.0,0.00185813]
[1721246474703,2.35902453,64650.0,64649.0,0.00085813]
[1721246474906,2.36502453,64650.0,64649.0,0.00185813]
[1721246475143,2.24337673,64650.0,64649.0,0.00285813]
[1721246475377,2.24337673,64650.0,64649.0,0.00185813]
[1721246475623,2.24337673,64650.0,64649.0,0.00285813]
[1721246475624,2.25737673,64650.0,64649.0,0.00285813]
[1721246476012,2.2575027,64650.0,64649.0,0.00285813]
[1721246476244,2.25735238,64650.0,64649.0,0.00285813]
[1721246476675,1.94799438,64650.0,64649.0,0.00285813]
[1721246476885,2.08685974,64650.0,64649.0,0.00285813]
[1721246477102,2.44799438,64650.0,64649.0,0.00285813]
[1721246477685,2.58685974,64650.0,64649.0,0.00285813]
[1721246478087,2.58683492,64650.0,64649.0,0.00285813]
[1721246478283,2.44799438,64650.0,64649.0,0.00285813]
[1721246478721,2.80735238,64650.0,64649.0,0.00285813]
[1721246478929,2.89257582,64650.0,64649.0,0.00285813]
[1721246480690,2.53321782,64650.0,64649.0,0.00285813]
[1721246481006,2.58661623,64650.0,64649.0,0.00285813]
[1721246481178,2.08660771,64650.0,64649.0,0.00285813]
[1721246481387,2.58660771,64650.0,64649.0,0.00285813]
[1721246481798,2.44779028,64650.0,64649.0,0.00285813]
[1721246482008,2.58671892,64650.0,64649.0,0.00285813]
[1721246482181,2.44789816,64650.0,64649.0,0.00285813]
[1721246482358,2.58671892,64650.0,64649.0,0.00285813]
[1721246482561,2.44789816,64650.0,64649.0,0.00285813]
[1721246482762,2.58671432,64650.0,64649.0,0.00285813]
[1721246482972,2.44789816,64650.0,64649.0,0.00285813]
[1721246483421,2.58670569,64650.0,64649.0,0.00285813]
[1721246484399,2.44789816,64650.0,64649.0,0.00285813]
[1721246485209,2.58663098,64650.0,64649.0,0.00285813]
[1721246485416,2.4478324,64650.0,64649.0,0.00285813]
[1721246485647,2.58663057,64650.0,64649.0,0.00285813]
[1721246486243,2.44783081,64650.0,64649.0,0.00285813]
[1721246486472,2.58663057,64650.0,64649.0,0.00285813]
[1721246488230,2.39765221,64650.0,64649.0,0.00285813]
[1721246488440,2.5865259,64650.0,64649.0,0.00285813]
[1721246490051,2.44772533,64650.0,64649.0,0.00285813]
[1721246490989,2.4477033,64650.0,64649.0,0.00285813]
[1721246491262,2.53304664,64650.0,64649.0,0.00285813]
[1721246491671,2.48304466,64650.0,64649.0,0.00285813]
[1721246491871,2.53314752,64650.0,64649.0,0.00285813]
[1721246493214,2.5865872,64650.0,64649.0,0.00285813]
[1721246493448,2.67197994,64650.0,64649.0,0.00285813]
[1721246493642,2.53314781,64650.0,64649.0,0.00285813]
[1721246493847,2.44775507,64650.0,64649.0,0.00285813]
[1721246494193,2.67197361,64650.0,64649.0,0.00285813]
[1721246494623,2.39765221,64650.0,64649.0,0.00285813]
[1721246494795,2.53255426,64650.0,64649.0,0.00285813]
[1721246496512,2.53255444,64650.0,64649.0,0.00285813]
[1721246497334,2.5943922,64650.0,64649.0,0.00285813]
[1721246497542,2.4784922,64650.0,64649.0,0.00285813]
[1721246497778,1.1665523,64650.0,64649.0,0.14905813]
[1721246498029,0.17634967,64650.0,64649.0,0.14905813]
[1721246498235,0.188679,64650.0,64649.0,0.16396394]
[1721246498459,0.182679,64650.0,64649.0,0.16296394]
[1721246498677,0.182679,64650.0,64649.0,0.14805813]
[1721246498928,0.034,64650.0,64649.0,0.14905813]
[1721246499174,0.006,64650.0,64649.0,0.18505394]
[1721246499598,0.168679,64650.0,64649.0,0.18605394]
[1721246500012,0.162679,64650.0,64649.0,0.18505394]
[1721246500431,0.154679,64650.0,64649.0,0.18405394]
[1721246500848,0.158679,64650.0,64649.0,0.18405394]
[1721246501259,0.468037,64650.0,64649.0,0.18405394]
[1721246501607,0.471037,64650.0,64649.0,0.18405394]
[1721246502017,0.468037,64650.0,64649.0,0.18405394]
[1721246502219,0.469037,64650.0,64649.0,0.18405394]
[1721246502435,0.001,64650.0,64649.0,0.33873494]
[1721246503113,0.005,64650.0,64649.0,0.33873494]
[1721246503317,0.154669,64654.0,64649.0,0.27553494]
[1721246503537,0.154669,64654.0,64651.0,0.0619]
[1721246503772,0.154669,64654.0,64650.0,0.08058119]
[1721246503773,0.154669,64654.0,64652.0,0.002794]
[1721246503974,0.154667,64655.0,64654.0,0.002794]
[1721246505471,0.157667,64655.0,64654.0,0.002794]
[1721246507384,0.157667,64655.0,64654.0,0.369894]
[1721246507385,0.003,64655.0,64654.0,0.369894]
[1721246507612,0.003,64655.0,64654.0,0.44686831]
[1721246507820,0.008,64655.0,64654.0,0.60153731]
[1721246508227,0.008,64655.0,64654.0,0.44686831]
[1721246508440,0.781335,64655.0,64654.0,0.1462]
[1721246508647,0.154679,64650.0,64649.0,0.14705813]
[1721246508849,1.082753,64650.0,64649.0,0.06665813]
[1721246509066,1.54649274,64650.0,64649.0,0.00085813]
[1721246509279,1.64649274,64650.0,64649.0,0.00085813]
[1721246509489,1.77483819,64650.0,64649.0,0.00085813]
[1721246510128,2.08419619,64650.0,64649.0,0.00085813]
[1721246510391,2.20009619,64650.0,64649.0,0.00085813]
[1721246510834,2.20009619,64650.0,64649.0,0.00185813]
[1721246511038,2.20009619,64650.0,64649.0,0.00385813]
[1721246511451,2.21409619,64650.0,64649.0,0.00185813]
[1721246511648,2.20009619,64650.0,64649.0,0.00085813]
[1721246511871,2.20009619,64650.0,64649.0,0.00185813]
[1721246511872,1.89873819,64650.0,64649.0,0.00185813]
[1721246512083,1.91273819,64650.0,64649.0,0.00285813]
[1721246512285,2.20009619,64650.0,64649.0,0.00085813]
[1721246512703,2.21109619,64650.0,64649.0,0.00185813]
[1721246513132,2.349918,64650.0,64649.0,0.00185813]
[1721246513335,2.20992553,64650.0,64649.0,0.00185813]
[1721246513542,2.26159681,64650.0,64649.0,0.00185813]
[1721246513748,2.27559681,64650.0,64649.0,0.00285813]
[1721246513949,2.27559681,64650.0,64649.0,0.00185813]
[1721246514179,2.26459681,64650.0,64649.0,0.00185813]
[1721246514378,2.27260024,64650.0,64649.0,0.00285813]
[1721246514753,2.26460024,64650.0,64649.0,0.00185813]
[1721246515159,2.27260024,64650.0,64649.0,0.00285813]
[1721246515612,2.14542545,64650.0,64649.0,0.00285813]
[1721246516941,2.14560238,64650.0,64649.0,0.00285813]
[1721246521195,2.19560238,64650.0,64649.0,0.00285813]
[1721246521598,2.14560238,64650.0,64649.0,0.00285813]
[1721246522738,2.14513495,64650.0,64649.0,0.00285813]
[1721246523315,2.14505542,64650.0,64649.0,0.00285813]
[1721246524353,2.19505542,64650.0,64649.0,0.00285813]
[1721246525753,2.14367121,64650.0,64649.0,0.00285813]
[1721246525962,2.1449805,64650.0,64649.0,0.00285813]
[1721246526771,2.1949805,64650.0,64649.0,0.00285813]
[1721246529080,2.14502639,64650.0,64649.0,0.00285813]
[1721246529551,2.28382704,64650.0,64649.0,0.00285813]
[1721246529757,2.14502639,64650.0,64649.0,0.00285813]
[1721246532148,2.27220118,64650.0,64649.0,0.00285813]
[1721246532365,1.392538,64630.0,64629.0,0.009185]
[1721246532581,1.64691974,64630.0,64629.0,0.009185]
[1721246532789,0.91990115,64630.0,64629.0,0.149485]
[1721246532997,0.873632,64630.0,64629.0,0.149485]
[1721246533651,0.04626915,64638.0,64631.0,0.0617]
[1721246533865,0.04626915,64638.0,64631.0,0.2826]
[1721246533866,0.154722,64632.0,64631.0,0.2826]
[1721246534067,0.254722,64632.0,64631.0,0.2826]
[1721246534275,0.254722,64632.0,64631.0,0.3273617]
[1721246534489,0.1,64632.0,64631.0,0.4075617]
[1721246535556,0.01,64632.0,64631.0,0.4075617]
[1721246535761,0.01,64632.0,64631.0,1.1811837]
[1721246537090,0.017,64632.0,64631.0,1.1821837]
[1721246537520,0.01,64632.0,64631.0,1.4906327]
[1721246537742,0.01,64632.0,64631.0,1.1841837]
[1721246538402,0.1,64640.0,64637.0,0.233909]
[1721246538622,0.1,64640.0,64638.0,0.1234279]
[1721246539688,0.106,64640.0,64638.0,0.1234279]
[1721246539921,0.106,64640.0,64638.0,0.069094]
[1721246540168,0.254703,64640.0,64638.0,0.069094]
[1721246540693,0.260703,64640.0,64638.0,0.070094]
[1721246541124,0.269703,64640.0,64638.0,0.070094]
[1721246541368,0.015,64640.0,64638.0,0.070094]
[1721246541592,0.015,64640.0,64639.0,0.1632334]
[1721246541810,0.015,64640.0,64639.0,0.3781384]
[1721246542065,0.015,64640.0,64639.0,1.20134014]
[1721246542282,0.015,64640.0,64639.0,1.51075014]
[1721246542496,0.015,64640.0,64639.0,1.63921231]
[1721246542703,0.006,64640.0,64639.0,1.58921216]
[1721246543133,0.4662,64650.0,64649.0,0.298881]
[1721246543353,0.00083,64655.0,64651.0,0.1442]
[1721246543562,0.00083,64655.0,64649.0,0.6220237]
[1721246543563,0.00083,64655.0,64653.0,0.0807]
[1721246543769,0.00083,64655.0,64654.0,0.065294]
[1721246543975,0.00083,64655.0,64654.0,0.0625]
[1721246544179,0.10083,64655.0,64654.0,0.0625]
[1721246544388,0.00083,64655.0,64654.0,0.60054833]
[1721246544611,0.00083,64655.0,64654.0,0.67845433]
[1721246544824,0.01183,64655.0,64654.0,0.67845433]
[1721246545028,0.00883,64655.0,64654.0,0.67945433]
[1721246545458,0.01483,64655.0,64654.0,0.67945433]
[1721246545676,0.00883,64655.0,64654.0,0.67945433]
[1721246545884,0.00883,64655.0,64654.0,0.98879233]
[1721246546096,0.00983,64655.0,64654.0,0.98879233]
[1721246546748,0.00983,64655.0,64654.0,0.98779233]
[1721246546749,0.00183,64655.0,64654.0,0.98779233]
[1721246547197,0.00183,64655.0,64654.0,0.67845433]
[1721246547407,0.00383,64655.0,64654.0,0.67845433]
[1721246547792,0.00183,64655.0,64654.0,0.67845433]
[1721246548045,0.00183,64655.0,64654.0,0.68045433]
[1721246548516,0.00183,64655.0,64654.0,0.67845433]
[1721246548942,0.00083,64655.0,64654.0,0.67845433]
[1721246549364,0.00183,64655.0,64654.0,0.67845433]
[1721246549572,0.00083,64655.0,64654.0,0.67845433]
[1721246549778,0.00083,64655.0,64654.0,0.68045433]
[1721246549984,0.00183,64655.0,64654.0,0.68045433]
[1721246550398,0.00183,64655.0,64654.0,0.67845433]
[1721246550600,0.00183,64655.0,64654.0,0.68045433]
[1721246550828,0.00083,64655.0,64654.0,0.68045433]
[1721246551042,0.00083,64655.0,64654.0,0.67845433]
[1721246551248,0.00083,64655.0,64654.0,0.98779233]
[1721246551451,0.00083,64655.0,64654.0,0.68145433]
[1721246551995,0.00083,64655.0,64654.0,0.99079233]
[1721246552429,0.00083,64655.0,64654.0,0.68145433]
[1721246552829,0.00083,64655.0,64654.0,0.68345433]
[1721246553053,0.00083,64655.0,64654.0,0.68145433]
[1721246553258,0.00083,64655.0,64654.0,0.67845433]
[1721246553478,0.00083,64655.0,64654.0,0.68045433]
[1721246553684,0.00083,64655.0,64654.0,0.1492]
[1721246553997,0.155497,64655.0,64654.0,0.1452]
[1721246554108,0.774165,64655.0,64654.0,0.0645]
[1721246554311,0.465831,64655.0,64654.0,0.0695]
[1721246554983,0.464831,64655.0,64654.0,0.0645]
[1721246555179,0.466831,64655.0,64654.0,0.0645]
[1721246555379,0.157497,64655.0,64654.0,0.0625]
[1721246555787,0.00783,64655.0,64654.0,0.6090796]
[1721246555993,0.00283,64655.0,64654.0,0.6889796]
[1721246556237,0.00283,64655.0,64654.0,0.3796416]
[1721246556440,0.01083,64655.0,64654.0,0.3796416]
[1721246556620,0.00283,64655.0,64654.0,0.3796416]
[1721246557074,0.00483,64655.0,64654.0,0.3796416]
[1721246557289,0.00283,64655.0,64654.0,0.3796416]
[1721246557500,0.317164,64655.0,64654.0,0.1434]
[1721246557705,0.471831,64655.0,64654.0,0.1434]
[1721246557900,0.471831,64655.0,64654.0,0.001]
[1721246558237,0.15467,64654.0,64650.0,0.221672]
[1721246558651,0.154674,64652.0,64650.0,0.066994]
[1721246560307,0.154669,64654.0,64650.0,0.2825562]
[1721246560513,0.006,64652.0,64650.0,0.2825562]
[1721246560723,0.009,64652.0,64651.0,0.154676]
[1721246560939,0.009,64652.0,64651.0,0.11999962]
[1721246561165,0.009,64652.0,64651.0,0.27746962]
[1721246561367,0.006,64652.0,64651.0,0.27467562]
[1721246562423,0.006,64652.0,64651.0,0.27567562]
[1721246562630,0.155497,64655.0,64651.0,0.27567562]
[1721246562780,0.154669,64654.0,64652.0,0.13461228]
[1721246564060,0.002,64654.0,64652.0,0.28928528]
[1721246564578,0.005,64654.0,64652.0,0.28928528]
[1721246564705,0.007,64654.0,64652.0,0.28928528]
[1721246564903,0.007,64654.0,64653.0,0.773357]
[1721246565107,0.005,64654.0,64653.0,1.06660657]
[1721246565597,0.006,64654.0,64653.0,1.06660657]
[1721246565759,0.001,64654.0,64653.0,1.06660657]
[1721246566186,0.006,64654.0,64653.0,1.06660657]
[1721246566614,0.001,64654.0,64653.0,1.06660657]
[1721246566976,0.004,64654.0,64653.0,1.06660657]
[1721246567338,0.00083,64655.0,64654.0,0.464007]
[1721246567573,0.00083,64655.0,64654.0,1.13792908]
[1721246568988,0.00083,64655.0,64654.0,1.14192908]
[1721246569419,0.155497,64655.0,64654.0,0.004]
[1721246569630,0.464831,64655.0,64654.0,0.004]
[1721246569843,0.464831,64655.0,64654.0,0.006]
[1721246570253,0.464831,64655.0,64654.0,0.002]
[1721246570455,0.464831,64655.0,64651.0,0.002794]
[1721246570662,0.155497,64655.0,64654.0,0.001]
[1721246570866,0.160497,64655.0,64654.0,0.001]
[1721246571074,0.160497,64655.0,64653.0,0.002794]
[1721246571543,0.163497,64655.0,64653.0,0.002794]
[1721246571743,0.163497,64655.0,64653.0,0.157464]
[1721246571744,0.00883,64655.0,64653.0,0.157464]
[1721246571945,0.00583,64655.0,64654.0,0.09883522]
[1721246572155,0.00083,64655.0,64654.0,0.10162922]
[1721246572354,0.00183,64655.0,64654.0,0.10162922]
[1721246572584,0.00783,64655.0,64654.0,0.10162922]
[1721246572787,0.00783,64655.0,64654.0,0.64294222]
[1721246572998,0.00783,64655.0,64654.0,0.95228022]
[1721246573636,0.00083,64655.0,64654.0,0.95228022]
[1721246573847,0.00083,64655.0,64654.0,1.17518022]
[1721246574688,0.00083,64655.0,64654.0,1.17818022]
[1721246574900,0.00083,64655.0,64654.0,1.24378022]
[1721246575322,0.00083,64655.0,64654.0,1.23878022]
[1721246575530,0.00083,64655.0,64654.0,1.24278022]
[1721246576371,0.00083,64655.0,64654.0,1.24478022]
[1721246580944,0.00083,64655.0,64654.0,1.55411822]
[1721246581157,0.00083,64655.0,64654.0,2.06783796]
[1721246581786,0.04623095,64667.0,64666.0,0.15464]
[1721246581992,0.00083,64670.0,64666.0,0.1419]
[1721246582201,0.00083,64670.0,64669.0,0.4639]
[1721246582417,0.00083,64670.0,64669.0,1.082434]
[1721246582871,0.00083,64670.0,64669.0,1.23681574]
[1721246583089,0.00083,64670.0,64669.0,1.39116531]
[1721246584392,0.00183,64670.0,64669.0,1.40016531]
[1721246584611,0.00183,64670.0,64669.0,1.46476531]
[1721246584826,0.00183,64670.0,64669.0,1.85393231]
[1721246585037,0.00183,64670.0,64669.0,2.03233938]
[1721246585270,0.00183,64670.0,64669.0,1.98733938]
[1721246585477,0.00283,64670.0,64669.0,1.90893231]
[1721246585699,0.00283,64670.0,64669.0,2.03233732]
[1721246585914,0.00383,64670.0,64669.0,1.90893231]
[1721246586351,0.00383,64670.0,64669.0,2.03733676]
[1721246586622,0.00283,64670.0,64669.0,1.89993231]
[1721246586842,0.00383,64670.0,64669.0,1.91093231]
[1721246587260,0.00383,64670.0,64669.0,1.86093231]
[1721246588128,0.00383,64670.0,64669.0,1.55166531]
[1721246588329,0.00383,64670.0,64669.0,1.24239831]
[1721246589583,0.00383,64670.0,64669.0,1.55166531]
[1721246591300,0.00383,64670.0,64669.0,1.60166531]
[1721246591418,0.00383,64670.0,64669.0,1.55166531]
[1721246593427,0.00383,64670.0,64669.0,1.60166531]
[1721246593584,0.00383,64670.0,64669.0,1.91093231]
[1721246593786,0.00083,64671.0,64670.0,1.441679]
[1721246594087,0.00083,64691.0,64690.0,0.154583]
[1721246594299,0.00083,64691.0,64690.0,0.684649]
[1721246594539,0.00083,64691.0,64690.0,1.060015]
[1721246596917,0.00083,64691.0,64690.0,1.066015]
[1721246597519,0.00083,64691.0,64690.0,1.070015]
[1721246597746,0.00083,64691.0,64690.0,1.15881702]
[1721246603454,0.00083,64691.0,64690.0,1.46798302]
[1721246609047,0.00083,64691.0,64690.0,1.62236476]
[1721246609267,0.00083,64691.0,64690.0,2.01333076]
[1721246609728,0.00083,64691.0,64690.0,2.06333076]
[1721246610599,0.00083,64691.0,64690.0,2.1856916]
[1721246610830,0.00084,64702.0,64701.0,1.391013]
[1721246611063,0.00084,64702.0,64701.0,1.95169474]
[1721246611677,0.00084,64702.0,64701.0,2.0800361]
[1721246611888,0.00084,64702.0,64701.0,1.95169474]
[1721246612319,0.00084,64702.0,64701.0,1.90169474]
[1721246612524,0.00084,64702.0,64701.0,1.83514431]
[1721246612730,0.00084,64702.0,64701.0,2.05604431]
[1721246613203,0.00584,64702.0,64701.0,2.05604431]
[1721246613405,0.00084,64702.0,64701.0,2.06704431]
[1721246613617,0.00084,64702.0,64701.0,2.19538489]
[1721246613828,0.00184,64702.0,64701.0,2.19338489]
[1721246614037,0.00184,64702.0,64701.0,2.20338489]
[1721246614715,0.00184,64702.0,64701.0,2.07504431]
[1721246615567,0.00184,64702.0,64701.0,2.06504431]
[1721246615767,0.00184,64702.0,64701.0,2.11504431]
[1721246616613,0.00084,64702.0,64701.0,2.11604431]
[1721246617026,0.00184,64702.0,64701.0,2.24438411]
[1721246617293,0.00184,64702.0,64701.0,2.25538411]
[1721246617528,0.00184,64702.0,64701.0,2.12704431]
[1721246617782,0.00184,64702.0,64701.0,2.43615831]
[1721246618013,0.00835,64705.0,64704.0,1.440945]
[1721246618244,0.00835,64705.0,64704.0,1.96501562]
[1721246618498,0.00835,64705.0,64704.0,2.27411462]
[1721246620187,0.00835,64705.0,64704.0,2.28811462]
[1721246620361,0.00835,64705.0,64704.0,2.23811462]
[1721246620688,0.00835,64705.0,64704.0,2.30211462]
[1721246620907,0.00835,64705.0,64704.0,2.30209789]
[1721246623218,0.00835,64705.0,64704.0,1.94299889]
[1721246624001,0.00835,64705.0,64704.0,2.30209789]
[1721246624767,0.00835,64705.0,64704.0,2.52299789]
[1721246625011,0.00835,64705.0,64704.0,2.30209789]
[1721246625388,0.00835,64705.0,64704.0,2.52299789]
[1721246625610,0.00835,64705.0,64704.0,2.30209789]
[1721246627286,0.00835,64705.0,64704.0,2.30209731]
[1721246628177,0.00084,64724.0,64723.0,0.309009]
[1721246628440,0.00084,64724.0,64723.0,1.21300374]
[1721246628645,0.00084,64724.0,64723.0,1.89412565]
[1721246628820,0.08284,64724.0,64723.0,1.76582174]
[1721246629389,0.00084,64724.0,64723.0,1.76582174]
[1721246629592,0.00084,64724.0,64723.0,1.86765696]
[1721246630017,0.00084,64724.0,64723.0,1.86465696]
[1721246630269,0.00084,64724.0,64723.0,1.87265696]
[1721246630475,0.00084,64724.0,64723.0,1.87765696]
[1721246631404,0.00084,64724.0,64723.0,1.87265696]
[1721246631603,0.00084,64724.0,64723.0,1.86465696]
[1721246631979,0.00084,64724.0,64723.0,1.87365696]
[1721246632821,0.00084,64724.0,64723.0,1.88065696]
[1721246633032,0.00084,64724.0,64723.0,1.65975696]
[1721246633241,0.13884,64724.0,64723.0,0.11483522]
[1721246633471,0.13884,64724.0,64723.0,0.016]
[1721246633689,0.13884,64724.0,64723.0,0.009]
[1721246633906,0.13884,64724.0,64723.0,0.017]
[1721246634123,0.756848,64724.0,64723.0,0.017]
[1721246634332,1.66573174,64724.0,64723.0,0.009]
[1721246634536,1.97473574,64724.0,64723.0,0.009]
[1721246634748,0.138,64711.0,64708.0,0.002794]
[1721246634951,0.138,64711.0,64709.0,0.0474777]
[1721246635368,0.138,64701.0,64686.0,0.2209]
[1721246635575,0.154564,64698.0,64692.0,0.154576]
[1721246635780,0.154564,64698.0,64686.0,0.2209]
[1721246635781,0.154559,64700.0,64686.0,0.2209]
[1721246635983,0.138,64701.0,64697.0,0.154565]
[1721246636400,0.138,64701.0,64694.0,0.154572]
[1721246636401,0.15456,64700.0,64694.0,0.154572]
[1721246636605,0.15456,64700.0,64692.0,0.2209]
[1721246636606,0.154564,64698.0,64693.0,0.154575]
[1721246636810,0.138,64701.0,64693.0,0.0684639]
[1721246636811,0.296974,64694.0,64693.0,0.0684639]
[1721246637020,0.296974,64694.0,64687.0,0.2075979]
[1721246637228,0.296974,64694.0,64688.0,0.002794]
[1721246637439,0.154576,64693.0,64688.0,0.002794]
[1721246637642,0.154576,64693.0,64688.0,0.157381]
[1721246637847,0.1424,64694.0,64689.0,0.23756119]
[1721246638054,0.1424,64694.0,64690.0,0.002794]
[1721246638263,0.15458,64692.0,64687.0,0.0530089]
[1721246638686,0.15458,64692.0,64688.0,0.002794]
[1721246639302,0.1454,64694.0,64688.0,0.002794]
[1721246639303,0.299975,64694.0,64688.0,0.002794]
[1721246639506,0.1424,64694.0,64693.0,0.154576]
[1721246639638,0.1424,64694.0,64693.0,0.463728]
[1721246641103,0.1424,64694.0,64693.0,0.154576]
[1721246641285,0.1424,64694.0,64689.0,0.28831759]
[1721246641286,0.451548,64694.0,64689.0,0.06741759]
[1721246641495,0.154581,64691.0,64689.0,0.06741759]
[1721246641696,0.154581,64691.0,64686.0,0.154592]
[1721246641898,0.154578,64692.0,64687.0,0.002794]
[1721246642105,0.154578,64692.0,64687.0,0.15459]
[1721246642309,0.154578,64692.0,64688.0,0.002794]
[1721246642505,0.154578,64692.0,64688.0,0.0803699]
[1721246642908,0.154578,64692.0,64688.0,0.0775759]
[1721246643697,0.155578,64692.0,64688.0,0.0775759]
[1721246644112,0.154578,64692.0,64688.0,0.0775759]
[1721246644322,0.155578,64692.0,64688.0,0.0775759]
[1721246644491,0.155578,64692.0,64689.0,0.10714409]
[1721246644898,0.156578,64692.0,64689.0,0.10714409]
[1721246645502,0.003,64692.0,64689.0,0.10714409]
[1721246645703,0.003,64692.0,64688.0,0.000913]
[1721246645704,0.003,64692.0,64691.0,0.772905]
[1721246646231,0.001,64692.0,64691.0,0.463743]
[1721246646644,0.0625,64698.0,64693.0,0.309152]
[1721246646784,0.0808,64699.0,64697.0,0.2209]
[1721246647005,0.0808,64699.0,64698.0,0.154564]
[1721246647172,0.0808,64699.0,64698.0,0.2230246]
[1721246648735,0.0818,64699.0,64698.0,0.2230246]
[1721246648939,0.001,64699.0,64698.0,0.5321526]
[1721246649139,0.001,64699.0,64698.0,0.8412806]
[1721246649365,0.002,64699.0,64698.0,1.1504086]
[1721246650139,0.001,64699.0,64698.0,1.1504086]
[1721246650759,0.0621,64707.0,64704.0,0.154549]
[1721246650958,0.0621,64707.0,64705.0,0.0463656]
[1721246651373,0.0621,64707.0,64706.0,0.002794]
[1721246651975,0.0631,64707.0,64706.0,0.002794]
[1721246652390,0.0621,64707.0,64706.0,0.002794]
[1721246652785,0.0641,64707.0,64706.0,0.003794]
[1721246653157,0.0631,64707.0,64706.0,0.05248136]
[1721246653363,0.0641,64707.0,64706.0,0.05348136]
[1721246653571,0.0641,64707.0,64706.0,0.20802636]
[1721246653768,0.0641,64707.0,64706.0,0.20702636]
[1721246654156,0.002,64707.0,64706.0,0.51611636]
[1721246654359,0.003,64707.0,64706.0,0.51611636]
[1721246654574,0.003,64707.0,64706.0,1.13429636]
[1721246654777,0.002,64707.0,64706.0,1.13429636]
[1721246655266,0.003,64707.0,64706.0,1.13429636]
[1721246655694,0.154522,64716.0,64710.0,0.309069]
[1721246655909,0.154522,64716.0,64712.0,0.15453]
[1721246656115,0.154522,64716.0,64713.0,0.002794]
[1721246657144,0.155522,64716.0,64713.0,0.002794]
[1721246657581,0.154522,64716.0,64713.0,0.002794]
[1721246657826,0.4662,64717.0,64714.0,0.154525]
[1721246658054,0.4662,64717.0,64715.0,0.09012577]
[1721246658490,0.001,64716.0,64715.0,0.08733177]
[1721246658723,0.001,64716.0,64715.0,0.46275477]
[1721246658928,0.0768,64722.0,64715.0,0.30823177]
[1721246659131,0.1768,64722.0,64718.0,0.309028]
[1721246659340,0.00084,64724.0,64721.0,0.154508]
[1721246659542,0.10084,64724.0,64721.0,0.154508]
[1721246659745,0.00084,64724.0,64721.0,0.154508]
[1721246659950,0.00084,64724.0,64723.0,0.154504]
[1721246660160,0.00084,64724.0,64723.0,0.772522]